bitfinex/quotes_ETHUSD_20250414
["timestamp","ask_amount","ask_price","bid_price","bid_amount"]
[1744641054638,5.99989,1666.7,1666.4,7.201067]
[1744641054801,5.99959,1666.8,1666.4,7.201047]
[1744641055002,11.99942,1666.8,1666.4,13.201837]
[1744641055205,11.99942,1666.8,1666.4,7.201007]
[1744641055416,5.99959,1666.8,1666.5,6.00054]
[1744641055627,5.99959,1666.8,1666.5,6.00057]
[1744641055842,11.99939,1666.8,1666.5,6.00057]
[1744641056543,11.99939,1666.8,1666.4,7.201057]
[1744641056544,5.99959,1666.8,1666.4,7.201057]
[1744641056751,5.99959,1666.8,1666.4,12.00168]
[1744641057043,3.0,1666.9,1666.4,12.00163]
[1744641057434,5.99972,1666.8,1666.4,12.00163]
[1744641057962,11.99944,1666.8,1666.4,6.00081]
[1744641058143,5.99992,1666.7,1666.4,6.00081]
[1744641058310,6.00037,1666.6,1666.2,6.00164]
[1744641058511,6.00124,1666.4,1666.0,6.48558788]
[1744641058738,6.00097,1666.4,1666.1,12.00384]
[1744641058920,6.00029,1666.6,1666.2,6.00156]
[1744641059227,6.00029,1666.6,1666.3,6.00126]
[1744641059523,11.99935,1666.8,1666.4,6.00079]
[1744641059839,11.99935,1666.8,1666.4,12.00163]
[1744641060154,20.63607878,1667.0,1666.2,6.06167427]
[1744641060155,3.0,1666.9,1666.5,6.00024]
[1744641060325,8.99924,1666.9,1666.5,6.00024]
[1744641060647,3.0,1666.9,1666.6,5.99996]
[1744641060954,5.99845,1667.1,1666.7,5.99985]
[1744641061250,5.9993,1666.9,1666.5,6.600454]
[1744641061484,6.00022,1666.7,1666.1,6.00176]
[1744641061788,6.00108,1666.4,1666.0,6.48556788]
[1744641062077,10.83291878,1666.8,1666.1,0.06001369]
[1744641062281,6.00079,1666.5,1666.1,6.00198]
[1744641062434,6.00078,1666.5,1666.1,7.25069479]
[1744641062637,12.00156,1666.5,1666.1,7.25066479]
[1744641062881,6.00032,1666.6,1666.2,6.00149]
[1744641063140,8.99994,1666.7,1666.4,6.0008]
[1744641063141,3.0,1666.7,1666.4,6.0008]
[1744641063356,8.99993,1666.7,1666.3,6.00111]
[1744641063536,8.99993,1666.7,1666.3,12.00228]
[1744641063858,6.00078,1666.5,1666.1,7.25066479]
[1744641064155,6.00128,1666.4,1666.0,6.00235]
[1744641064342,6.00134,1666.3,1666.0,6.00235]
[1744641064540,6.00184,1666.2,1665.8,6.603415]
[1744641064737,6.00184,1666.2,1665.8,12.606485]
[1744641065058,6.00227,1666.1,1665.7,6.00335]
[1744641065381,12.00454,1666.1,1665.7,6.00335]
[1744641065584,6.00132,1666.3,1665.6,6.00369]
[1744641065585,6.0024,1666.0,1665.6,6.00369]
[1744641065782,6.00287,1665.9,1665.7,0.06002802]
[1744641066078,6.00276,1665.9,1665.3,18.81468]
[1744641066262,6.00359,1665.7,1665.4,6.00445]
[1744641067175,6.00367,1665.7,1665.3,18.8146]
[1744641067347,13.83576878,1666.0,1665.3,18.8146]
[1744641067348,6.00318,1665.8,1665.4,6.00442]
[1744641067550,9.00285,1665.9,1665.6,6.0038]
[1744641067765,9.00285,1665.9,1665.6,6.60418]
[1744641067961,9.00285,1665.9,1665.6,0.60038]
[1744641068166,9.00285,1665.9,1665.6,6.60409]
[1744641068362,9.00285,1665.9,1665.6,0.60038]
[1744641068784,6.00244,1666.0,1665.6,12.60766]
[1744641069166,3.0,1666.1,1665.6,0.60038]
[1744641069383,3.0,1666.1,1665.5,6.00411]
[1744641069587,6.0031,1665.9,1665.4,6.00448]
[1744641069748,6.00278,1665.9,1665.5,6.00416]
[1744641069954,6.00278,1665.9,1665.5,12.06827517]
[1744641070191,6.00278,1665.9,1665.5,12.06819517]
[1744641070384,6.00278,1665.9,1665.6,6.00372]
[1744641070555,6.00278,1665.9,1665.5,7.21087952]
[1744641070754,6.00322,1665.8,1665.5,1.20681952]
[1744641071155,6.00251,1666.0,1665.6,6.00364]
[1744641071359,6.00298,1665.9,1665.5,7.21098952]
[1744641071580,6.00253,1666.0,1665.5,1.20681952]
[1744641071776,3.0,1666.1,1665.5,6.00405]
[1744641071777,9.00205,1666.1,1665.5,6.00405]
[1744641072004,6.0024,1666.0,1665.5,12.0681551]
[1744641072172,3.0,1666.1,1665.7,6.00339]
[1744641072366,6.805,1666.2,1665.5,6.00412]
[1744641072602,6.805,1666.2,1665.7,6.0034]
[1744641072767,12.00446,1666.1,1665.7,6.00332]
[1744641072967,6.00242,1666.0,1665.7,6.00332]
[1744641073169,6.00211,1666.1,1665.6,0.06002751]
[1744641073494,6.00211,1666.1,1665.7,12.00653]
[1744641073697,12.0044,1666.1,1665.7,6.00323]
[1744641073874,6.00298,1665.9,1665.5,6.00408]
[1744641074080,6.00277,1665.9,1665.5,0.06003333]
[1744641074282,6.00277,1665.9,1665.5,12.06807333]
[1744641074598,6.00287,1665.9,1665.5,12.06828333]
[1744641074786,6.0024,1666.0,1665.6,6.00367]
[1744641074991,6.0024,1666.0,1665.7,6.00341]
[1744641075189,3.0,1666.2,1665.7,6.00341]
[1744641075504,6.00102,1666.4,1666.0,6.00227]
[1744641075670,6.00102,1666.4,1666.1,6.00194]
[1744641075874,6.00151,1666.3,1665.9,6.00264]
[1744641076069,6.00151,1666.3,1665.7,6.804]
[1744641076070,6.00074,1666.5,1666.1,6.00181]
[1744641076267,6.00074,1666.5,1665.7,6.804]
[1744641076268,12.00232,1666.4,1666.0,6.00227]
[1744641076602,6.00152,1666.3,1665.9,12.00522]
[1744641076810,12.00225,1666.4,1666.0,6.00224]
[1744641077112,6.8220701,1667.3,1666.0,6.00224]
[1744641077113,6.00007,1666.7,1666.3,6.00108]
[1744641077314,12.00022,1666.7,1666.3,6.00108]
[1744641077473,6.00007,1666.7,1666.3,6.06108658]
[1744641077673,12.00011,1666.7,1666.3,6.06108658]
[1744641077873,6.00047,1666.6,1666.2,6.00154]
[1744641078170,6.00063,1666.5,1666.3,0.600154]
[1744641078371,6.00063,1666.5,1666.2,12.06312053]
[1744641078706,6.0003,1666.6,1666.3,6.00127]
[1744641079080,0.7983,1666.5,1666.3,6.00127]
[1744641080606,0.7983,1666.5,1666.2,6.06155053]
[1744641080607,6.79893,1666.5,1666.2,6.06155053]
[1744641080810,0.7983,1666.5,1666.2,13.88973005]
[1744641081105,0.7983,1666.5,1666.3,6.00118]
[1744641081275,0.7983,1666.5,1666.4,6.00096]
[1744641081470,0.7727,1666.7,1666.6,6.00005]
[1744641081874,0.7727,1666.9,1666.7,5.99978]
[1744641082475,0.7727,1666.9,1666.6,6.00005]
[1744641082675,0.7727,1666.9,1666.6,6.600055]
[1744641082899,0.7727,1666.9,1666.7,6.05976755]
[1744641083116,0.8271,1667.3,1667.0,5.99866]
[1744641083419,6.82495,1667.3,1667.0,5.99866]
[1744641083716,12.82285,1667.3,1667.0,5.99866]
[1744641083870,6.82495,1667.3,1666.9,5.99908]
[1744641084422,6.803,1667.4,1666.5,12.80346]
[1744641084423,5.99942,1666.9,1666.5,12.80346]
[1744641084576,6.82954,1666.8,1666.4,6.00083]
[1744641084771,5.99998,1666.7,1666.3,6.00114]
[1744641085222,6.00025,1666.6,1666.3,6.06114232]
[1744641085372,6.82953,1666.8,1666.4,6.00072]
[1744641085791,0.8299,1666.8,1666.5,6.00039]
[1744641086018,6.82945,1666.8,1666.5,6.00039]
[1744641086179,6.82198,1666.7,1666.3,8.15883524]
[1744641086536,0.8219,1666.6,1666.3,6.06121311]
[1744641086945,0.8219,1666.6,1666.4,6.00092]
[1744641087243,5.99822,1667.2,1666.5,0.06000617]
[1744641087442,0.8213,1667.1,1666.5,0.06000617]
[1744641087747,0.8188,1667.4,1667.1,5.99819]
[1744641087920,12.81385,1667.4,1667.0,5.99875]
[1744641088109,6.81616,1667.4,1667.0,5.99866]
[1744641088306,6.81616,1667.4,1667.1,5.99837]
[1744641088618,12.81374,1667.4,1667.0,5.99863]
[1744641088818,12.81374,1667.4,1667.0,7.198401]
[1744641089367,0.8188,1667.4,1667.0,1.199771]
[1744641089670,0.8104,1667.8,1667.4,5.99702]
[1744641089826,0.8104,1667.8,1667.5,5.99687]
[1744641090163,6.80653,1667.8,1667.5,5.99699]
[1744641090465,12.80264,1667.8,1667.4,12.05422513]
[1744641090629,6.80632,1667.8,1667.2,5.99792]
[1744641090824,5.99704,1667.5,1667.1,6.75709]
[1744641091056,5.99774,1667.3,1667.0,6.801]
[1744641091265,5.99784,1667.3,1667.0,6.801]
[1744641091761,0.8104,1667.0,1666.8,5.99951]
[1744641091971,6.80936,1667.0,1666.6,12.80105]
[1744641092130,0.8104,1667.0,1666.7,5.99966]
[1744641092451,5.99979,1666.8,1666.2,8.06066985]
[1744641092627,0.7605,1666.6,1666.3,6.80712699]
[1744641092823,6.00063,1666.5,1666.2,1.30753985]
[1744641093028,6.00063,1666.5,1666.1,6.00186]
[1744641093243,6.00063,1666.5,1666.2,6.00156]
[1744641093537,0.7605,1666.6,1666.3,6.0011]
[1744641093738,6.00065,1666.5,1666.2,6.00158]
[1744641094079,0.7605,1666.6,1666.4,6.0008]
[1744641094584,6.821,1666.8,1666.4,12.00157]
[1744641094745,6.821,1666.8,1666.4,6.00077]
[1744641094943,6.00004,1666.7,1666.4,6.00077]
[1744641095283,6.17,1667.1,1666.6,6.00008]
[1744641095440,0.8114,1667.4,1667.0,5.99847]
[1744641095774,5.99808,1667.2,1666.9,5.99914]
[1744641095974,11.99641,1667.2,1666.8,11.99873]
[1744641096173,5.99774,1667.3,1666.9,11.9978]
[1744641096648,5.99774,1667.3,1666.9,13.12093833]
[1744641096854,5.99783,1667.3,1666.9,7.12217833]
[1744641097073,6.80878,1667.4,1667.2,5.99777]
[1744641097074,0.8114,1667.4,1667.2,5.99777]
[1744641097245,6.17,1667.5,1667.2,5.99805]
[1744641097449,6.17,1667.5,1667.2,6.597827]
[1744641097673,12.16701,1667.5,1667.2,6.597827]
[1744641097993,12.16701,1667.5,1666.9,12.80015]
[1744641097994,5.99792,1667.3,1667.0,5.99879]
[1744641098145,5.99742,1667.4,1667.0,6.05863987]
[1744641098345,6.17,1667.5,1667.1,5.99824]
[1744641098584,0.7742,1667.6,1667.3,5.99737]
[1744641098759,6.77103,1667.6,1667.2,5.99791]
[1744641098954,0.7742,1667.6,1667.3,5.99743]
[1744641099184,0.7742,1667.6,1667.3,11.99497]
[1744641099345,0.7742,1667.6,1667.3,5.99743]
[1744641099546,6.77093,1667.6,1667.3,5.99743]
[1744641100183,6.77093,1667.6,1667.2,6.05787126]
[1744641100484,6.77093,1667.6,1667.3,5.9977]
[1744641100680,6.77093,1667.6,1667.3,5.99755]
[1744641100977,5.99705,1667.5,1667.1,5.99814]
[1744641101178,0.7742,1667.6,1667.3,5.99767]
[1744641101367,6.77085,1667.6,1667.3,5.99767]
[1744641101589,12.76777,1667.6,1667.2,5.99805]
[1744641101801,5.997,1667.5,1667.2,5.99805]
[1744641104313,0.7599,1666.9,1666.3,13.6223]
[1744641104471,0.7599,1666.9,1666.6,6.0]
[1744641104671,0.7599,1666.9,1666.7,5.9998]
[1744641104870,0.7599,1666.9,1666.6,6.0]
[1744641105111,0.7599,1666.9,1666.5,6.00056]
[1744641105112,12.7585,1666.9,1666.5,6.00056]
[1744641105330,6.75908,1666.9,1666.5,6.00046]
[1744641105485,6.75908,1666.9,1666.6,6.00023]
[1744641106115,3.0,1667.1,1666.6,1.26006435]
[1744641106116,0.8299,1667.1,1666.6,1.26006435]
[1744641106323,0.8299,1667.6,1666.8,0.55]
[1744641106486,6.77805,1667.9,1667.5,5.997]
[1744641106700,6.77805,1667.9,1667.5,5.99676]
[1744641106701,5.99612,1667.8,1667.5,5.99676]
[1744641107006,5.99612,1667.8,1667.5,5.99699]
[1744641107182,5.99612,1667.8,1667.5,6.05695495]
[1744641107619,5.99645,1667.7,1667.3,19.61665]
[1744641107925,5.99645,1667.7,1667.4,5.99735]
[1744641108481,6.77808,1667.9,1667.3,0.8264]
[1744641108685,6.77808,1667.9,1667.5,11.99356]
[1744641108686,12.77386,1667.9,1667.5,11.99356]
[1744641108899,5.99594,1667.8,1667.5,5.99673]
[1744641109926,11.99205,1667.8,1667.5,5.99673]
[1744641110428,5.99594,1667.8,1667.5,5.99673]
[1744641110626,5.99548,1668.0,1667.5,5.99681]
[1744641110921,10.98006407,1668.3,1668.0,5.99488]
[1744641110922,0.005,1668.3,1668.0,5.99488]
[1744641111126,0.005,1668.3,1667.8,0.8276]
[1744641111299,5.99449,1668.2,1667.9,6.05534616]
[1744641112263,5.99486,1668.1,1667.6,0.7706]
[1744641112440,0.005,1668.3,1667.6,0.7706]
[1744641112650,5.99928,1668.3,1667.9,5.99542]
[1744641112832,5.99928,1668.3,1668.0,6.05502547]
[1744641113368,0.005,1668.3,1668.1,12.74039]
[1744641113523,0.005,1668.3,1668.2,5.99448]
[1744641113720,0.005,1668.3,1668.2,6.05441206]
[1744641114075,0.005,1668.3,1668.2,5.99448]
[1744641114358,0.005,1668.3,1668.2,6.05441268]
[1744641114522,0.005,1668.3,1668.2,7.27448927]
[1744641114727,0.005,1668.3,1668.1,6.74568]
[1744641115141,0.005,1668.3,1668.2,5.99448]
[1744641115628,0.005,1668.3,1668.2,6.05441593]
[1744641116636,0.005,1668.3,1668.2,5.99448]
[1744641116854,0.005,1668.3,1668.2,6.05441602]
[1744641117450,0.005,1668.3,1668.2,6.93762301]
[1744641117663,0.005,1668.3,1668.2,6.87768699]
[1744641118064,0.005,1668.3,1668.2,6.93761716]
[1744641118243,0.005,1668.3,1668.2,6.87768699]
[1744641118571,0.005,1668.3,1668.2,5.99448]
[1744641119247,0.005,1668.3,1668.2,6.0544108]
[1744641119450,0.005,1668.3,1668.2,5.99448]
[1744641119667,5.99105,1669.2,1668.8,5.99213]
[1744641119965,0.7636,1669.3,1669.0,5.99144]
[1744641119966,0.12303347,1669.1,1669.0,5.99144]
[1744641120335,6.75416,1669.3,1669.0,5.99144]
[1744641120536,0.9314928,1669.3,1669.1,5.99113]
[1744641120742,0.9314928,1669.3,1669.1,0.599113]
[1744641120942,5.99089,1669.2,1669.1,0.599113]
[1744641121140,6.9220828,1669.3,1668.8,0.599213]
[1744641121369,0.7636,1669.3,1668.8,0.65912983]
[1744641121528,5.99127,1669.1,1668.8,6.65134983]
[1744641121867,5.99143,1669.1,1668.8,0.65912983]
[1744641122240,5.9918,1669.0,1668.8,0.599213]
[1744641122443,5.99197,1668.9,1668.6,12.78401]
[1744641122637,5.99236,1668.8,1668.6,6.791]
[1744641122873,11.98429,1668.9,1668.6,6.791]
[1744641123225,5.99197,1668.9,1668.6,12.78389]
[1744641123667,0.05,1669.4,1668.7,5.99268]
[1744641123838,5.9909,1669.2,1668.9,5.99189]
[1744641124039,5.99053,1669.3,1669.0,5.99159]
[1744641124040,0.1678928,1669.3,1669.0,5.99159]
[1744641124245,0.1678928,1669.3,1669.0,11.98309]
[1744641124451,0.1678928,1669.3,1668.8,6.591328]
[1744641124649,0.1678928,1669.3,1669.2,5.99089]
[1744641124982,0.1678928,1669.3,1669.1,5.99108]
[1744641125182,0.1678928,1669.3,1669.1,5.99115]
[1744641125355,0.1678928,1669.3,1668.9,1.4419328]
[1744641125540,0.1678928,1669.3,1668.9,7.4336228]
[1744641125878,5.99101,1669.2,1668.9,7.4336228]
[1744641126082,5.99101,1669.2,1668.8,11.98437]
[1744641126252,5.99128,1669.1,1668.8,5.99216]
[1744641126582,6.80471,1669.3,1668.9,5.99175]
[1744641126780,6.9726328,1669.3,1669.0,5.99133]
[1744641126966,12.9634328,1669.3,1668.9,12.5890664]
[1744641127155,5.99172,1669.0,1668.6,18.7769]
[1744641127475,0.8141,1669.3,1668.6,12.78389]
[1744641127644,5.99175,1669.0,1668.7,5.99268]
[1744641128044,5.99175,1669.0,1668.7,6.05244904]
[1744641128240,5.99212,1668.9,1668.6,6.791]
[1744641128435,5.99212,1668.9,1668.5,12.73774]
[1744641128436,11.9844,1668.9,1668.5,12.73774]
[1744641128636,5.99237,1668.8,1668.5,2.024874]
[1744641128862,11.98494,1668.8,1668.4,18.7704]
[1744641129080,5.9927,1668.7,1668.4,18.77032]
[1744641129274,5.99316,1668.6,1668.4,6.783]
[1744641129479,5.99316,1668.6,1668.3,5.99409]
[1744641129778,5.99316,1668.6,1668.4,0.05993042]
[1744641129779,6.16096626,1668.6,1668.4,0.05993042]
[1744641130075,6.16109626,1668.6,1668.2,5.99436]
[1744641130282,6.16109626,1668.6,1668.3,5.99412]
[1744641130486,5.99274,1668.7,1668.4,5.99375]
[1744641130690,0.16788626,1668.6,1668.4,5.99375]
[1744641130867,0.16788626,1668.6,1668.3,12.04807022]
[1744641131040,6.16098626,1668.6,1668.3,5.99402]
[1744641131243,6.16098626,1668.6,1668.3,11.98799]
[1744641131476,12.15423626,1668.6,1668.3,5.99397]
[1744641131676,6.79234,1668.5,1668.1,0.7628]
[1744641131878,5.99412,1668.3,1668.0,7.20022455]
[1744641132189,11.98935,1668.2,1667.8,59.52487]
[1744641132343,11.99001,1668.1,1667.8,53.529]
[1744641132544,12.78881,1668.1,1667.7,6.77066]
[1744641132748,5.99526,1668.0,1667.7,6.77066]
[1744641132987,5.99594,1667.8,1667.5,13.55439]
[1744641133189,5.99648,1667.7,1667.5,6.783]
[1744641133347,11.99299,1667.7,1667.3,6.7721]
[1744641133543,11.99299,1667.7,1667.4,0.67721]
[1744641133856,5.99648,1667.7,1667.4,0.73717618]
[1744641134039,0.7988,1668.1,1667.4,0.73717618]
[1744641134238,5.99533,1668.0,1667.6,5.99643]
[1744641134442,9.79381,1668.1,1667.6,5.99643]
[1744641134443,0.7988,1668.1,1667.8,5.99592]
[1744641134656,6.79371,1668.1,1667.8,5.99592]
[1744641135042,6.9467,1668.5,1668.4,5.99376]
[1744641135245,0.7767,1668.5,1668.2,5.99434]
[1744641135592,6.77015,1668.5,1668.2,5.99447]
[1744641135888,6.77015,1668.5,1668.1,5.99469]
[1744641136043,12.76382,1668.5,1668.1,6.05462854]
[1744641136248,6.77015,1668.5,1668.1,13.93271539]
[1744641136554,5.9931,1668.6,1668.3,5.99412]
[1744641136555,5.99306,1668.6,1668.3,5.99412]
[1744641136779,5.99306,1668.6,1668.3,5.99395]
[1744641137706,5.99366,1668.5,1668.2,5.99443]
[1744641137872,5.99397,1668.4,1668.2,1.46833369]
[1744641138314,5.99412,1668.3,1668.0,5.9952]
[1744641138494,11.98848,1668.3,1668.0,0.05994467]
[1744641138695,0.8193,1668.3,1667.9,12.77939]
[1744641139013,6.81353,1668.3,1667.9,12.77939]
[1744641139512,3.0,1668.7,1668.2,5.99448]
[1744641139708,5.9934,1668.5,1668.1,5.9947]
[1744641139912,5.99402,1668.4,1668.0,5.99516]
[1744641140115,5.99402,1668.4,1668.0,12.05018573]
[1744641140289,5.99416,1668.3,1667.9,12.77948]
[1744641140481,5.99463,1668.2,1667.9,8.140668]
[1744641140785,5.9952,1668.0,1667.6,13.59458]
[1744641141010,5.9952,1668.0,1667.7,5.9961]
[1744641141310,5.9952,1668.0,1667.6,19.59098]
[1744641141488,5.9952,1668.0,1667.6,13.59449]
[1744641141700,11.98994,1668.1,1667.7,11.99236]
[1744641141909,0.7633,1668.4,1668.3,5.99412]
[1744641142083,6.75648,1668.6,1668.3,5.99412]
[1744641142483,6.75662,1668.6,1668.0,7.5914]
[1744641142785,0.7633,1668.6,1668.3,5.99387]
[1744641143086,6.7565,1668.6,1668.2,5.99443]
[1744641143288,6.7565,1668.6,1668.1,0.75914]
[1744641143619,5.99438,1668.3,1668.1,0.75914]
[1744641143919,10.81671427,1668.7,1667.7,11.743036]
[1744641143920,5.99484,1668.1,1667.7,17.739296]
[1744641144119,11.98996,1668.1,1667.7,20.735556]
[1744641144302,5.99484,1668.1,1667.8,6.05572253]
[1744641144905,11.98985,1668.1,1667.8,6.05572253]
[1744641145226,5.99484,1668.1,1667.8,6.05572253]
[1744641145718,6.75669,1668.2,1667.8,13.56292194]
[1744641145905,6.75669,1668.2,1667.9,5.99551]
[1744641146104,5.99512,1668.1,1667.8,7.50720941]
[1744641146334,6.75671,1668.2,1667.8,13.56296193]
[1744641146484,12.7514,1668.2,1667.8,13.50300941]
[1744641146820,6.75671,1668.2,1667.9,5.99555]
[1744641147022,0.7622,1668.2,1668.0,5.99501]
[1744641147187,9.81542,1668.4,1667.8,5.99578]
[1744641147383,3.8216,1668.4,1668.1,5.99467]
[1744641147586,6.81563,1668.4,1668.1,5.99469]
[1744641147783,0.8216,1668.4,1668.1,5.9948]
[1744641148121,6.81686,1668.6,1668.2,5.9942]
[1744641148321,5.99414,1668.3,1668.1,0.67451]
[1744641148623,5.99391,1668.4,1668.1,5.9948]
[1744641148783,5.99391,1668.4,1668.0,6.05499454]
[1744641148986,5.99432,1668.3,1667.9,6.80075]
[1744641149200,11.98874,1668.3,1667.9,7.353925]
[1744641149405,6.78929,1668.2,1667.8,18.77662]
[1744641149742,6.78941,1668.2,1667.9,5.99543]
[1744641150145,0.7948,1668.2,1667.9,11.99083]
[1744641150442,0.7948,1668.2,1667.9,5.9954]
[1744641150947,5.99499,1668.1,1667.8,18.77663]
[1744641151135,6.78938,1668.2,1667.8,20.735543]
[1744641151335,12.78421,1668.2,1667.8,20.735543]
[1744641151655,12.78421,1668.2,1667.8,14.739683]
[1744641152048,5.9953,1668.0,1667.6,5.99655]
[1744641152254,5.9953,1668.0,1667.5,12.78189]
[1744641152255,0.7855,1668.0,1667.5,12.78189]
[1744641152441,5.99598,1667.8,1667.5,12.78189]
[1744641152965,12.77619,1668.0,1667.7,5.99624]
[1744641153247,5.99571,1667.9,1667.5,12.78188]
[1744641153457,5.9963,1667.7,1667.5,6.785]
[1744641153749,5.99594,1667.8,1667.4,5.9972]
[1744641153918,5.99597,1667.8,1667.5,6.0568958]
[1744641154119,12.77605,1668.0,1667.6,5.99637]
[1744641154333,5.99559,1667.9,1667.6,5.99637]
[1744641154528,11.99131,1667.9,1667.6,5.99637]
[1744641154743,5.99559,1667.9,1667.6,5.99662]
[1744641154948,5.99556,1667.9,1667.5,0.60568958]
[1744641155165,5.99642,1667.7,1667.4,5.99729]
[1744641155322,5.99642,1667.7,1667.4,6.05725581]
[1744641155525,5.99599,1667.8,1667.5,5.99686]
[1744641155939,5.99599,1667.8,1667.4,5.9973]
[1744641156139,5.99599,1667.8,1667.5,5.99692]
[1744641156364,5.99583,1667.9,1667.5,6.05685577]
[1744641156564,5.99604,1667.8,1667.5,11.99378]
[1744641156790,5.99583,1667.9,1667.6,5.9965]
[1744641156990,5.99579,1667.9,1667.5,5.99691]
[1744641157158,5.99571,1667.9,1667.5,11.9938]
[1744641157346,11.99248,1667.8,1667.4,5.9972]
[1744641157688,5.99621,1667.8,1667.4,7.271717]
[1744641157850,5.99636,1667.7,1667.4,7.271717]
[1744641158587,5.997,1667.5,1667.4,1.274517]
[1744641158774,6.81956,1667.7,1667.3,5.99737]
[1744641159088,6.17,1667.9,1667.3,5.99737]
[1744641159089,12.9888,1667.9,1667.5,6.7611]
[1744641159292,0.8038,1668.1,1668.0,5.9952]
[1744641159598,6.17,1668.2,1667.9,5.99543]
[1744641159759,6.17,1668.2,1667.9,6.594973]
[1744641160085,12.16449,1668.2,1667.9,0.599543]
[1744641160585,12.16449,1668.2,1667.9,6.595103]
[1744641160978,18.15914,1668.2,1667.9,6.595103]
[1744641161187,18.15914,1668.2,1667.9,0.599543]
[1744641161970,12.16449,1668.2,1667.9,6.595103]
[1744641162208,18.15921,1668.2,1667.9,0.599543]
[1744641162510,5.99488,1668.1,1667.9,0.599543]
[1744641163083,12.16449,1668.2,1667.9,0.599543]
[1744641163288,18.15919,1668.2,1667.9,0.599543]
[1744641163501,12.16449,1668.2,1667.9,0.599543]
[1744641163673,18.15915,1668.2,1667.9,0.599543]
[1744641163875,11.98915,1668.2,1667.9,0.599543]
[1744641164172,11.98915,1668.2,1667.8,12.78467]
[1744641164374,11.98915,1668.2,1667.8,6.78886]
[1744641164675,11.98914,1668.2,1667.8,12.78466]
[1744641165009,11.98915,1668.2,1667.8,12.78466]
[1744641165221,5.99508,1668.1,1667.7,5.99615]
[1744641165511,5.99535,1668.0,1667.7,5.99615]
[1744641165719,11.99016,1668.1,1667.7,13.948782]
[1744641165916,5.99508,1668.1,1667.8,5.99586]
[1744641166080,6.79796,1668.3,1667.9,5.99554]
[1744641166280,5.99458,1668.2,1667.9,5.99545]
[1744641166612,0.8038,1668.3,1667.9,1.20512333]
[1744641166771,5.99509,1668.1,1667.7,7.952652]
[1744641166982,0.7972,1668.1,1667.6,6.782]
[1744641167286,5.99571,1667.9,1667.6,5.99658]
[1744641168120,0.8067,1667.8,1667.4,6.8226]
[1744641168283,6.8027,1667.8,1667.4,5.99704]
[1744641168621,6.8027,1667.8,1667.5,5.99687]
[1744641168788,12.79878,1667.8,1667.5,5.99687]
[1744641168971,6.8027,1667.8,1667.5,5.99687]
[1744641169382,5.99636,1667.7,1667.4,7.275104]
[1744641170925,5.99674,1667.6,1667.4,1.277804]
[1744641171112,5.997,1667.5,1667.3,6.781]
[1744641171418,5.997,1667.5,1667.1,5.99835]
[1744641171594,5.99774,1667.3,1667.0,66.2601]
[1744641171800,11.99506,1667.4,1667.1,5.99843]
[1744641172132,0.8262,1667.5,1667.3,5.99767]
[1744641172297,0.8262,1667.5,1667.1,0.05997771]
[1744641172499,0.8262,1667.5,1667.2,5.99783]
[1744641172830,0.8262,1667.5,1667.2,11.99576]
[1744641173033,0.8262,1667.5,1667.2,13.20133377]
[1744641173191,0.8262,1667.5,1667.2,7.20340377]
[1744641173938,0.8262,1667.5,1667.2,13.20136377]
[1744641174228,5.9968,1667.6,1667.3,5.99768]
[1744641174436,11.9937,1667.6,1667.2,13.20136377]
[1744641174607,11.99366,1667.6,1667.3,5.99755]
[1744641174798,5.99704,1667.5,1667.2,11.9959]
[1744641175033,12.75405,1667.7,1667.3,5.99767]
[1744641175337,6.7576,1667.7,1667.3,5.99767]
[1744641175640,0.7613,1667.7,1667.1,5.9983]
[1744641175827,5.99766,1667.4,1667.0,6.76337]
[1744641176032,11.99532,1667.4,1667.0,14.416587]
[1744641176204,5.99766,1667.4,1667.1,11.99673]
[1744641176402,11.99532,1667.4,1667.0,14.416697]
[1744641176598,5.99772,1667.3,1667.0,14.416627]
[1744641176853,5.99752,1667.4,1667.0,8.417897]
[1744641177060,5.99752,1667.4,1667.0,2.47921826]
[1744641177224,6.75764,1667.7,1667.0,2.47921826]
[1744641177225,5.99672,1667.6,1667.2,5.99796]
[1744641177419,5.99746,1667.4,1667.1,5.99835]
[1744641177754,11.99508,1667.4,1667.0,14.416757]
[1744641177952,5.99746,1667.4,1667.1,5.99841]
[1744641178157,5.99786,1667.3,1667.0,8.417997]
[1744641178460,5.99786,1667.3,1667.0,8.5834597]
[1744641178755,5.99772,1667.3,1666.9,12.78107]
[1744641178944,5.99822,1667.2,1666.9,12.78107]
[1744641179925,5.99822,1667.2,1666.9,12.78115]
[1744641180260,5.99777,1667.3,1666.9,5.99903]
[1744641180433,0.7589,1667.4,1667.2,5.99808]
[1744641180756,11.99427,1667.5,1667.2,5.99808]
[1744641181132,3.0,1667.5,1667.1,0.7708]
[1744641181347,5.99764,1667.4,1667.1,0.7708]
[1744641181660,5.99808,1667.2,1666.9,6.75768]
[1744641181821,5.99808,1667.2,1666.9,12.75672]
[1744641182021,5.99808,1667.2,1666.9,6.75764]
[1744641182354,5.99848,1667.1,1666.7,6.79626]
[1744641182562,5.99848,1667.1,1666.8,5.99949]
[1744641182856,0.7971,1667.3,1666.9,5.99895]
[1744641182857,6.79483,1667.3,1666.9,5.99895]
[1744641183023,6.79483,1667.3,1667.0,5.99868]
[1744641183219,0.7971,1667.3,1666.9,5.99916]
[1744641183451,12.94941,1667.5,1667.1,5.99844]
[1744641183757,12.94941,1667.5,1667.2,6.82246]
[1744641183758,6.17,1667.5,1667.2,6.82246]
[1744641183957,6.17,1667.5,1667.2,12.82033]